[Event "Live Chess"]
[Site "Chess.com"]
[Date "2024.06.02"]
[Round "-"]
[White "AlexanderMatlak"]
[Black "Queensandpawns"]
[Result "1-0"]
[WhiteElo "2408"]
[BlackElo "2307"]
[TimeControl "300"]
[EndTime "16:34:47 PDT"]
[Termination "AlexanderMatlak won by resignation"]

1. c4 {[%clk 0:04:58.6]} 1... d5 {[%clk 0:04:53.2]} 2. cxd5 {[%clk 0:04:58.5]}
2... c6 {[%clk 0:04:51.6]} 3. dxc6 {[%clk 0:04:58.4]} 3... Nxc6 {[%clk
0:04:51.3]} 4. Nf3 {[%clk 0:04:57.4]} 4... e5 {[%clk 0:04:50.9]} 5. e4 {[%clk
0:04:56.7]} 5... Nf6 {[%clk 0:04:49.9]} 6. Nc3 {[%clk 0:04:55.5]} 6... Bg4
{[%clk 0:04:49.5]} 7. Be2 {[%clk 0:04:54.6]} 7... Bc5 {[%clk 0:04:47.3]} 8. O-O
{[%clk 0:04:53.6]} 8... Qd7 {[%clk 0:04:45.5]} 9. d3 {[%clk 0:04:49.7]} 9... Rd8
{[%clk 0:04:44.9]} 10. Bg5 {[%clk 0:04:44.5]} 10... h6 {[%clk 0:04:44.2]} 11.
Bxf6 {[%clk 0:04:43.4]} 11... gxf6 {[%clk 0:04:44.1]} 12. Nd5 {[%clk 0:04:42.9]}
12... Be7 {[%clk 0:04:37.3]} 13. Rc1 {[%clk 0:04:38.6]} 13... Rg8 {[%clk
0:04:33.6]} 14. Kh1 {[%clk 0:04:37.3]} 14... f5 {[%clk 0:04:17.7]} 15. Qa4
{[%clk 0:04:21.5]} 15... fxe4 {[%clk 0:04:02.6]} 16. dxe4 {[%clk 0:04:20.6]}
16... Nd4 {[%clk 0:03:59.9]} 17. Qxd7+ {[%clk 0:04:14]} 17... Bxd7 {[%clk
0:03:59.8]} 18. Nxd4 {[%clk 0:04:02.7]} 18... exd4 {[%clk 0:03:59.7]} 19. Rfd1
{[%clk 0:03:58.2]} 1-0

[Event "Live Chess"]
[Site "Chess.com"]
[Date "2024.06.02"]
[Round "-"]
[White "jk0110"]
[Black "raclement"]
[Result "0-1"]
[WhiteElo "1222"]
[BlackElo "1718"]
[TimeControl "300"]
[EndTime "16:35:15 PDT"]
[Termination "raclement won on time"]

1. e4 {[%clk 0:04:57.6]} 1... c5 {[%clk 0:04:55]} 2. d4 {[%clk 0:04:51.8]} 2...
cxd4 {[%clk 0:04:52.2]} 3. c3 {[%clk 0:04:50.9]} 3... d3 {[%clk 0:04:50.2]} 4.
Bxd3 {[%clk 0:04:48.2]} 4... g6 {[%clk 0:04:48.6]} 5. Nf3 {[%clk 0:04:43.9]}
5... Bg7 {[%clk 0:04:46.9]} 6. Bf4 {[%clk 0:04:36.2]} 6... Nc6 {[%clk
0:04:40.6]} 7. O-O {[%clk 0:04:31.6]} 7... Nf6 {[%clk 0:04:38.2]} 8. Qd2 {[%clk
0:04:25.1]} 8... O-O {[%clk 0:04:36.2]} 9. Bh6 {[%clk 0:04:23.2]} 9... d5 {[%clk
0:04:24.7]} 10. exd5 {[%clk 0:04:11.9]} 10... Qxd5 {[%clk 0:04:22.2]} 11. Bxg7
{[%clk 0:04:08.4]} 11... Kxg7 {[%clk 0:04:19.2]} 12. c4 {[%clk 0:04:03.2]} 12...
Qa5 {[%clk 0:04:04.3]} 13. Qf4 {[%clk 0:03:45.4]} 13... Be6 {[%clk 0:03:42.9]}
14. Nc3 {[%clk 0:03:23]} 14... Rad8 {[%clk 0:03:40]} 15. Bc2 {[%clk 0:03:13.5]}
15... Bxc4 {[%clk 0:03:22.4]} 16. Qxc4 {[%clk 0:03:07.9]} 16... a6 {[%clk
0:03:09.4]} 17. Qh4 {[%clk 0:02:33.7]} 17... h6 {[%clk 0:02:51]} 18. Ne4 {[%clk
0:02:05.8]} 18... Nxe4 {[%clk 0:02:46.5]} 19. Bxe4 {[%clk 0:02:03.2]} 19... e6
{[%clk 0:02:09.7]} 20. a3 {[%clk 0:01:42.1]} 20... Qb6 {[%clk 0:02:06.7]} 21.
Rad1 {[%clk 0:01:30.1]} 21... Qc7 {[%clk 0:01:47.3]} 22. Bxc6 {[%clk 0:01:19.4]}
22... bxc6 {[%clk 0:01:42.1]} 23. Rxd8 {[%clk 0:01:03.8]} 23... Rxd8 {[%clk
0:01:38.8]} 24. Ne5 {[%clk 0:00:54]} 24... Rd5 {[%clk 0:01:28.5]} 25. f4 {[%clk
0:00:25.5]} 25... c5 {[%clk 0:01:12.9]} 26. Kh1 {[%clk 0:00:18.3]} 26... c4
{[%clk 0:01:10.2]} 27. Qg3 {[%clk 0:00:15.5]} 27... Qb7 {[%clk 0:00:51.3]} 28.
Qc3 {[%clk 0:00:13.7]} 28... Kg8 {[%clk 0:00:28.7]} 29. Nxc4 {[%clk 0:00:11]}
29... Rc5 {[%clk 0:00:18.4]} 30. Rc1 {[%clk 0:00:09.4]} 30... Qc7 {[%clk
0:00:15.3]} 31. b3 {[%clk 0:00:06.7]} 31... a5 {[%clk 0:00:12.3]} 32. Qf6 {[%clk
0:00:02.2]} 32... a4 {[%clk 0:00:06.9]} 0-1

[Event "Live Chess"]
[Site "Chess.com"]
[Date "2024.06.02"]
[Round "-"]
[White "KwikPhoenix"]
[Black "TheSmoulderingMaster"]
[Result "0-1"]
[WhiteElo "2430"]
[BlackElo "1763"]
[TimeControl "300"]
[EndTime "16:35:21 PDT"]
[Termination "TheSmoulderingMaster won by checkmate"]

1. b3 {[%clk 0:04:58.7]} 1... d5 {[%clk 0:04:58.4]} 2. Bb2 {[%clk 0:04:58.6]}
2... Nc6 {[%clk 0:04:52.3]} 3. e3 {[%clk 0:04:57.5]} 3... e5 {[%clk 0:04:51]} 4.
Bb5 {[%clk 0:04:57]} 4... Bd6 {[%clk 0:04:48.4]} 5. Nf3 {[%clk 0:04:56.5]} 5...
Nf6 {[%clk 0:04:46.5]} 6. Nxe5 {[%clk 0:04:54.9]} 6... O-O {[%clk 0:04:43.6]} 7.
Nxc6 {[%clk 0:04:48.8]} 7... bxc6 {[%clk 0:04:41.7]} 8. Bxc6 {[%clk 0:04:48.7]}
8... Rb8 {[%clk 0:04:40.7]} 9. h3 {[%clk 0:04:47.8]} 9... Ba6 {[%clk 0:04:39.3]}
10. d3 {[%clk 0:04:45.1]} 10... Bb4+ {[%clk 0:04:30.8]} 11. Bc3 {[%clk
0:04:33.9]} 11... Bxc3+ {[%clk 0:04:26.6]} 12. Nxc3 {[%clk 0:04:33.8]} 12... Qd6
{[%clk 0:04:24.4]} 13. Ba4 {[%clk 0:04:31]} 13... Qe5 {[%clk 0:04:19.2]} 14. d4
{[%clk 0:04:29.2]} 14... Qg5 {[%clk 0:04:17.6]} 15. Ne2 {[%clk 0:04:25.4]} 15...
Qxg2 {[%clk 0:04:14.6]} 16. Rg1 {[%clk 0:04:24]} 16... Qxh3 {[%clk 0:04:13.2]}
17. Qd2 {[%clk 0:04:20.9]} 17... Ne4 {[%clk 0:04:11.1]} 18. Qc1 {[%clk
0:04:15.6]} 18... Qf3 {[%clk 0:04:07.9]} 19. c3 {[%clk 0:04:08.4]} 19... Qxe2#
{[%clk 0:04:03.9]} 0-1

[Event "Live Chess"]
[Site "Chess.com"]
[Date "2024.06.02"]
[Round "-"]
[White "booktrunk"]
[Black "RichardABates"]
[Result "0-1"]
[WhiteElo "1486"]
[BlackElo "2311"]
[TimeControl "300"]
[EndTime "16:35:27 PDT"]
[Termination "RichardABates won by resignation"]

1. d4 {[%clk 0:04:44.1]} 1... Nf6 {[%clk 0:04:58.3]} 2. Nc3 {[%clk 0:04:36]}
2... d5 {[%clk 0:04:56.2]} 3. Bf4 {[%clk 0:04:33.4]} 3... c5 {[%clk 0:04:54.3]}
4. dxc5 {[%clk 0:04:25.5]} 4... Nc6 {[%clk 0:04:49]} 5. e3 {[%clk 0:04:24]} 5...
e5 {[%clk 0:04:47.1]} 6. Bg5 {[%clk 0:04:21.5]} 6... Be6 {[%clk 0:04:45.7]} 7.
Bxf6 {[%clk 0:04:17.9]} 7... gxf6 {[%clk 0:04:44.2]} 8. Nf3 {[%clk 0:04:16.9]}
8... Bxc5 {[%clk 0:04:42.4]} 9. Be2 {[%clk 0:04:14.8]} 9... Rg8 {[%clk
0:04:40.5]} 10. O-O {[%clk 0:04:13]} 10... Bh3 {[%clk 0:04:18.1]} 11. Kh1 {[%clk
0:04:03.4]} 11... Bxg2+ {[%clk 0:04:15.8]} 0-1

[Event "Live Chess"]
[Site "Chess.com"]
[Date "2024.06.02"]
[Round "-"]
[White "ShanthamGrarks"]
[Black "NeilDruggan73"]
[Result "1-0"]
[WhiteElo "1840"]
[BlackElo "1741"]
[TimeControl "300"]
[EndTime "16:35:44 PDT"]
[Termination "ShanthamGrarks won by resignation"]

1. d4 {[%clk 0:04:56.7]} 1... Nf6 {[%clk 0:04:55.7]} 2. Nc3 {[%clk 0:04:56]}
2... g6 {[%clk 0:04:54.8]} 3. e4 {[%clk 0:04:55.3]} 3... Bg7 {[%clk 0:04:53.7]}
4. e5 {[%clk 0:04:54.3]} 4... Ng8 {[%clk 0:04:49.3]} 5. f4 {[%clk 0:04:53.7]}
5... e6 {[%clk 0:04:48.5]} 6. Nf3 {[%clk 0:04:53.1]} 6... d6 {[%clk 0:04:47.9]}
7. Bd3 {[%clk 0:04:51.9]} 7... dxe5 {[%clk 0:04:46.9]} 8. dxe5 {[%clk 0:04:50]}
8... Ne7 {[%clk 0:04:45.8]} 9. Be3 {[%clk 0:04:47.2]} 9... O-O {[%clk
0:04:45.2]} 10. Qe2 {[%clk 0:04:44]} 10... b6 {[%clk 0:04:41.1]} 11. O-O-O
{[%clk 0:04:42]} 11... Nd5 {[%clk 0:04:34.3]} 12. Nxd5 {[%clk 0:04:39.7]} 12...
exd5 {[%clk 0:04:33.1]} 13. Ng5 {[%clk 0:04:38.4]} 13... c6 {[%clk 0:04:30.6]}
14. h4 {[%clk 0:04:33.3]} 14... h5 {[%clk 0:04:29.1]} 15. Nxf7 {[%clk
0:04:28.6]} 15... Rxf7 {[%clk 0:04:26.5]} 16. Bxg6 {[%clk 0:04:26.7]} 16... Bg4
{[%clk 0:04:24.8]} 17. Bxf7+ {[%clk 0:04:22.4]} 17... Kxf7 {[%clk 0:04:23.4]}
18. Qd3 {[%clk 0:04:16.7]} 18... Bxd1 {[%clk 0:04:20.8]} 19. Qxd1 {[%clk
0:04:13]} 19... Qd7 {[%clk 0:04:10.4]} 20. Qxh5+ {[%clk 0:04:10.2]} 20... Kg8
{[%clk 0:04:08.7]} 21. f5 {[%clk 0:04:07.7]} 21... Qf7 {[%clk 0:04:06.3]} 22.
Qg4 {[%clk 0:04:05.4]} 22... Kh8 {[%clk 0:04:00.5]} 23. h5 {[%clk 0:03:58.9]}
23... Bxe5 {[%clk 0:03:59]} 24. h6 {[%clk 0:03:51.7]} 24... Nd7 {[%clk 0:03:58]}
25. Bd4 {[%clk 0:03:42.6]} 25... Rg8 {[%clk 0:03:56.5]} 26. Bxe5+ {[%clk
0:03:40.3]} 26... Nxe5 {[%clk 0:03:55.3]} 27. Qd4 {[%clk 0:03:39.4]} 27... Qxf5
{[%clk 0:03:46]} 28. h7 {[%clk 0:03:32.3]} 28... Rg7 {[%clk 0:03:41.2]} 29. Re1
{[%clk 0:03:31]} 29... Re7 {[%clk 0:03:38.7]} 30. Kb1 {[%clk 0:03:24.5]} 30...
Kxh7 {[%clk 0:03:37]} 31. g4 {[%clk 0:03:22.5]} 31... Qg5 {[%clk 0:03:17.4]} 32.
Rh1+ {[%clk 0:03:17.6]} 32... Kg8 {[%clk 0:03:10.2]} 33. a3 {[%clk 0:03:09.9]}
33... Qxg4 {[%clk 0:03:06.3]} 34. Rg1 {[%clk 0:03:08.6]} 34... Qxg1+ {[%clk
0:03:00.2]} 35. Qxg1+ {[%clk 0:03:06.8]} 35... Rg7 {[%clk 0:02:59.9]} 36. Qh2
{[%clk 0:03:02.1]} 36... Nc4 {[%clk 0:02:55.8]} 37. Qb8+ {[%clk 0:02:59.4]}
37... Kh7 {[%clk 0:02:53.8]} 38. Qc8 {[%clk 0:02:52.5]} 38... c5 {[%clk
0:02:46.3]} 39. Qf5+ {[%clk 0:02:50.8]} 39... Kh6 {[%clk 0:02:39.9]} 40. Qxd5
{[%clk 0:02:49.4]} 40... Nd2+ {[%clk 0:02:33.2]} 41. Qxd2+ {[%clk 0:02:46.3]}
41... Rg5 {[%clk 0:02:29]} 42. Ka2 {[%clk 0:02:44.5]} 42... Kh5 {[%clk
0:02:27.1]} 43. Qd7 {[%clk 0:02:41.9]} 43... a5 {[%clk 0:02:25.5]} 44. Qe8+
{[%clk 0:02:37.8]} 44... Rg6 {[%clk 0:02:24.5]} 45. a4 {[%clk 0:02:34]} 45...
Kg5 {[%clk 0:02:23.5]} 46. Kb3 {[%clk 0:02:27.5]} 46... Rf6 {[%clk 0:02:21.8]}
47. Qd8 {[%clk 0:02:20.6]} 47... Kg6 {[%clk 0:02:18.4]} 48. Qg8+ {[%clk
0:02:18.4]} 48... Kf5 {[%clk 0:02:15.8]} 49. Kc4 {[%clk 0:02:17.2]} 49... Rg6
{[%clk 0:02:14.7]} 50. Qd5+ {[%clk 0:02:13.3]} 50... Kf6 {[%clk 0:02:13.5]} 51.
Kb5 {[%clk 0:02:12.1]} 51... Kg7 {[%clk 0:02:12.3]} 52. Qc6 {[%clk 0:02:05.7]}
1-0

[Event "Live Chess"]
[Site "Chess.com"]
[Date "2024.06.02"]
[Round "-"]
[White "WelshTiger"]
[Black "TigerTank70"]
[Result "1-0"]
[WhiteElo "2475"]
[BlackElo "2234"]
[TimeControl "300"]
[EndTime "16:35:55 PDT"]
[Termination "WelshTiger won on time"]

1. e4 {[%clk 0:04:54.9]} 1... e5 {[%clk 0:04:58.7]} 2. Nf3 {[%clk 0:04:52.7]}
2... Nc6 {[%clk 0:04:57.4]} 3. d4 {[%clk 0:04:52]} 3... exd4 {[%clk 0:04:55.9]}
4. Bc4 {[%clk 0:04:51.7]} 4... Be7 {[%clk 0:04:49.1]} 5. Nxd4 {[%clk 0:04:47.9]}
5... Bf6 {[%clk 0:04:45.8]} 6. c3 {[%clk 0:04:45.5]} 6... Nge7 {[%clk
0:04:42.8]} 7. O-O {[%clk 0:04:43.4]} 7... O-O {[%clk 0:04:38.5]} 8. Be3 {[%clk
0:04:39.6]} 8... d5 {[%clk 0:04:33.9]} 9. exd5 {[%clk 0:04:32.7]} 9... Nxd5
{[%clk 0:04:24.2]} 10. Nxc6 {[%clk 0:04:31]} 10... bxc6 {[%clk 0:04:23.2]} 11.
Bd4 {[%clk 0:04:29.1]} 11... Rb8 {[%clk 0:04:15.6]} 12. b4 {[%clk 0:04:20.7]}
12... Bf5 {[%clk 0:03:49.1]} 13. Bxd5 {[%clk 0:04:13.3]} 13... cxd5 {[%clk
0:03:39.9]} 14. Bxa7 {[%clk 0:04:08.5]} 14... Rxb4 {[%clk 0:03:31.7]} 15. cxb4
{[%clk 0:04:07.6]} 15... Bxa1 {[%clk 0:03:30.2]} 16. Bd4 {[%clk 0:04:07.2]}
16... Bxb1 {[%clk 0:03:18.1]} 17. Bxa1 {[%clk 0:04:05.4]} 17... Bxa2 {[%clk
0:03:03]} 18. Bxg7 {[%clk 0:04:04.3]} 18... Kxg7 {[%clk 0:02:52.6]} 19. Qa1+
{[%clk 0:04:03.3]} 19... Qf6 {[%clk 0:02:50.4]} 20. Qxa2 {[%clk 0:04:02.9]}
20... Rd8 {[%clk 0:02:45.4]} 21. Qc2 {[%clk 0:03:56.3]} 21... Qd6 {[%clk
0:02:33.8]} 22. Rc1 {[%clk 0:03:40.4]} 22... d4 {[%clk 0:02:30.5]} 23. Qxc7
{[%clk 0:03:38.4]} 23... Qxc7 {[%clk 0:02:03.4]} 24. Rxc7 {[%clk 0:03:37.3]}
24... Rb8 {[%clk 0:02:02.7]} 25. Rc4 {[%clk 0:03:34.7]} 25... d3 {[%clk
0:02:01.4]} 26. Rd4 {[%clk 0:03:33.1]} 26... d2 {[%clk 0:02:00.7]} 27. Rxd2
{[%clk 0:03:29.3]} 27... Rxb4 {[%clk 0:01:59.6]} 28. g3 {[%clk 0:03:27.4]} 28...
Kg6 {[%clk 0:01:58.4]} 29. Kg2 {[%clk 0:03:26.9]} 29... f6 {[%clk 0:01:56.8]}
30. Rd8 {[%clk 0:03:23.6]} 30... Kg7 {[%clk 0:01:53.7]} 31. Kh3 {[%clk
0:03:20.6]} 31... Kg6 {[%clk 0:01:53.1]} 32. f3 {[%clk 0:03:18.2]} 32... Rb2
{[%clk 0:01:50.5]} 33. Rg8+ {[%clk 0:03:15]} 33... Kf7 {[%clk 0:01:49.3]} 34.
Ra8 {[%clk 0:03:13.8]} 34... Kg7 {[%clk 0:01:48.2]} 35. Ra4 {[%clk 0:03:10.7]}
35... Kg6 {[%clk 0:01:46.3]} 36. Rg4+ {[%clk 0:03:08.9]} 36... Kf7 {[%clk
0:01:42]} 37. Rh4 {[%clk 0:03:06.2]} 37... Kg6 {[%clk 0:01:40.6]} 38. Kg4 {[%clk
0:03:00.7]} 38... f5+ {[%clk 0:01:38.3]} 39. Kh3 {[%clk 0:02:57.4]} 39... Rf2
{[%clk 0:01:31]} 40. Rf4 {[%clk 0:02:56.6]} 40... Kg5 {[%clk 0:01:27.1]} 41. Rh4
{[%clk 0:02:45]} 41... h6 {[%clk 0:01:19]} 42. f4+ {[%clk 0:02:39.9]} 42... Kg6
{[%clk 0:01:18]} 43. g4 {[%clk 0:02:36.7]} 43... Rf3+ {[%clk 0:01:12.1]} 44. Kg2
{[%clk 0:02:35.6]} 44... Rxf4 {[%clk 0:01:11.5]} 45. gxf5+ {[%clk 0:02:31.7]}
45... Rxf5 {[%clk 0:01:11.4]} 46. Ra4 {[%clk 0:02:28.9]} 46... Kg5 {[%clk
0:01:08.3]} 47. Kg3 {[%clk 0:02:27]} 47... Rb5 {[%clk 0:01:06.2]} 48. Ra3 {[%clk
0:02:25.5]} 48... Kg6 {[%clk 0:01:04]} 49. h3 {[%clk 0:02:20.3]} 49... Rb6
{[%clk 0:01:03]} 50. Ra4 {[%clk 0:02:17.8]} 50... Rc6 {[%clk 0:01:02.4]} 51. Kh4
{[%clk 0:02:16.2]} 51... Rb6 {[%clk 0:01:01.6]} 52. Rg4+ {[%clk 0:02:15.3]}
52... Kh7 {[%clk 0:00:59.8]} 53. Kh5 {[%clk 0:02:14.1]} 53... Rb5+ {[%clk
0:00:58.7]} 54. Kh4 {[%clk 0:02:13.5]} 54... Rb6 {[%clk 0:00:58.1]} 55. Rc4
{[%clk 0:02:12.5]} 55... Rb7 {[%clk 0:00:56.1]} 56. Kg4 {[%clk 0:02:10.1]} 56...
Ra7 {[%clk 0:00:55.3]} 57. h4 {[%clk 0:02:08.8]} 57... Rg7+ {[%clk 0:00:52.9]}
58. Kh5 {[%clk 0:02:07.5]} 58... Ra7 {[%clk 0:00:51.1]} 59. Rc5 {[%clk
0:02:06.5]} 59... Rb7 {[%clk 0:00:49.7]} 60. Kg4 {[%clk 0:02:04.1]} 60... Rb4+
{[%clk 0:00:48.8]} 61. Kh5 {[%clk 0:02:01.4]} 61... Rb7 {[%clk 0:00:47.6]} 62.
Rc6 {[%clk 0:01:59.8]} 62... Rb5+ {[%clk 0:00:46]} 63. Kg4 {[%clk 0:01:59.3]}
63... Ra5 {[%clk 0:00:44.9]} 64. h5 {[%clk 0:01:57.3]} 64... Ra4+ {[%clk
0:00:43.8]} 65. Kg3 {[%clk 0:01:55.9]} 65... Ra5 {[%clk 0:00:42]} 66. Rc7+
{[%clk 0:01:54.2]} 66... Kg8 {[%clk 0:00:40.9]} 67. Kg4 {[%clk 0:01:52.5]} 67...
Rb5 {[%clk 0:00:37.9]} 68. Ra7 {[%clk 0:01:49.2]} 68... Rc5 {[%clk 0:00:36.7]}
69. Ra6 {[%clk 0:01:47.8]} 69... Kg7 {[%clk 0:00:35.2]} 70. Rg6+ {[%clk
0:01:46.8]} 70... Kh7 {[%clk 0:00:34.5]} 71. Rb6 {[%clk 0:01:46.7]} 71... Rd5
{[%clk 0:00:33.1]} 72. Rb7+ {[%clk 0:01:44.2]} 72... Kh8 {[%clk 0:00:32.3]} 73.
Rb1 {[%clk 0:01:42.2]} 73... Rc5 {[%clk 0:00:31.4]} 74. Rh1 {[%clk 0:01:39.5]}
74... Rd5 {[%clk 0:00:30.2]} 75. Kf4 {[%clk 0:01:38.8]} 75... Kg7 {[%clk
0:00:29.4]} 76. Ke4 {[%clk 0:01:37.7]} 76... Ra5 {[%clk 0:00:28.6]} 77. Rg1+
{[%clk 0:01:35.4]} 77... Kh7 {[%clk 0:00:27.8]} 78. Rh1 {[%clk 0:01:34.5]} 78...
Kg7 {[%clk 0:00:26.9]} 79. Kf4 {[%clk 0:01:34.1]} 79... Kh7 {[%clk 0:00:26.3]}
80. Kg4 {[%clk 0:01:32.4]} 80... Kg7 {[%clk 0:00:25.7]} 81. Rb1 {[%clk
0:01:29.9]} 81... Ra4+ {[%clk 0:00:25.1]} 82. Kg3 {[%clk 0:01:28.8]} 82... Ra3+
{[%clk 0:00:24.6]} 83. Kf4 {[%clk 0:01:26.7]} 83... Ra4+ {[%clk 0:00:24.1]} 84.
Ke5 {[%clk 0:01:25.6]} 84... Ra5+ {[%clk 0:00:23.4]} 85. Ke6 {[%clk 0:01:25.2]}
85... Rxh5 {[%clk 0:00:22.4]} 86. Rg1+ {[%clk 0:01:23.6]} 86... Rg5 {[%clk
0:00:21.3]} 87. Ra1 {[%clk 0:01:19.6]} 87... Kg6 {[%clk 0:00:20.4]} 88. Ra8
{[%clk 0:01:17.3]} 88... h5 {[%clk 0:00:19.6]} 89. Rh8 {[%clk 0:01:14.9]} 89...
Rg4 {[%clk 0:00:18]} 90. Ke5 {[%clk 0:01:13.9]} 90... Rg5+ {[%clk 0:00:17]} 91.
Kf4 {[%clk 0:01:12.8]} 91... Ra5 {[%clk 0:00:16.9]} 92. Rg8+ {[%clk 0:01:11]}
92... Kh7 {[%clk 0:00:15.5]} 93. Rb8 {[%clk 0:01:09.9]} 93... h4 {[%clk
0:00:14.7]} 94. Kg4 {[%clk 0:01:09.1]} 94... Kh6 {[%clk 0:00:13.7]} 95. Rb6+
{[%clk 0:01:07.5]} 95... Kg7 {[%clk 0:00:12.2]} 96. Kh3 {[%clk 0:01:06.9]} 96...
Ra3+ {[%clk 0:00:11.4]} 97. Kxh4 {[%clk 0:01:04.5]} 97... Ra4+ {[%clk
0:00:10.4]} 98. Kg3 {[%clk 0:01:03.1]} 98... Ra3+ {[%clk 0:00:09.7]} 99. Kg4
{[%clk 0:01:02.5]} 99... Ra4+ {[%clk 0:00:09.1]} 100. Kf5 {[%clk 0:01:02]}
100... Ra5+ {[%clk 0:00:08.5]} 101. Ke6 {[%clk 0:01:01.5]} 101... Ra1 {[%clk
0:00:07.8]} 102. Rb7+ {[%clk 0:01:00.6]} 102... Kg6 {[%clk 0:00:07]} 103. Rb2
{[%clk 0:01:00.2]} 103... Re1+ {[%clk 0:00:06.2]} 104. Kd5 {[%clk 0:00:59.7]}
104... Rd1+ {[%clk 0:00:05.8]} 105. Kc4 {[%clk 0:00:58.4]} 105... Rc1+ {[%clk
0:00:05.7]} 106. Kd3 {[%clk 0:00:57.6]} 106... Rf1 {[%clk 0:00:05.4]} 107. Ke2
{[%clk 0:00:56.7]} 107... Rh1 {[%clk 0:00:05.3]} 108. Kf3 {[%clk 0:00:55.9]}
108... Rh3+ {[%clk 0:00:04.6]} 109. Kg4 {[%clk 0:00:55.1]} 109... Rh8 {[%clk
0:00:04.4]} 110. Rb6+ {[%clk 0:00:54.1]} 110... Kf7 {[%clk 0:00:03.9]} 111. Kg5
{[%clk 0:00:53.1]} 111... Rh2 {[%clk 0:00:02.2]} 112. Rb7+ {[%clk 0:00:51.8]}
112... Ke6 {[%clk 0:00:02.1]} 113. Rb6+ {[%clk 0:00:50.6]} 113... Kd5 {[%clk
0:00:02]} 114. Rb1 {[%clk 0:00:49.4]} 114... Kc4 {[%clk 0:00:01.9]} 115. Rd1
{[%clk 0:00:47.6]} 115... Rg2+ {[%clk 0:00:01.8]} 116. Kf4 {[%clk 0:00:46.5]}
116... Rc2 {[%clk 0:00:01.7]} 117. Rd8 {[%clk 0:00:45.1]} 117... Kb3 {[%clk
0:00:01.6]} 118. Rb8+ {[%clk 0:00:43.6]} 118... Kc3 {[%clk 0:00:00.2]} 119. Rd8
{[%clk 0:00:42.4]} 1-0

[Event "Live Chess"]
[Site "Chess.com"]
[Date "2024.06.02"]
[Round "-"]
[White "MagnersCarlsberg2870"]
[Black "viktor_forever1994"]
[Result "0-1"]
[WhiteElo "1773"]
[BlackElo "1387"]
[TimeControl "300"]
[EndTime "16:35:57 PDT"]
[Termination "viktor_forever1994 won on time"]

1. d4 {[%clk 0:04:57.3]} 1... Nf6 {[%clk 0:04:58.5]} 2. Nf3 {[%clk 0:04:56.2]}
2... d5 {[%clk 0:04:58.4]} 3. e3 {[%clk 0:04:55.2]} 3... e6 {[%clk 0:04:58.3]}
4. Bd3 {[%clk 0:04:54.5]} 4... c5 {[%clk 0:04:58.2]} 5. c3 {[%clk 0:04:53.6]}
5... c4 {[%clk 0:04:57.3]} 6. Bc2 {[%clk 0:04:52.5]} 6... Be7 {[%clk 0:04:56.8]}
7. Ne5 {[%clk 0:04:51.5]} 7... O-O {[%clk 0:04:56.4]} 8. Nd2 {[%clk 0:04:50.6]}
8... h6 {[%clk 0:04:55.9]} 9. f4 {[%clk 0:04:49.6]} 9... Nbd7 {[%clk 0:04:55.1]}
10. O-O {[%clk 0:04:47.9]} 10... b6 {[%clk 0:04:53.5]} 11. Qe2 {[%clk
0:04:46.8]} 11... Bb7 {[%clk 0:04:51.6]} 12. Rf3 {[%clk 0:04:43.4]} 12... Ne4
{[%clk 0:04:37.8]} 13. Rh3 {[%clk 0:04:36.3]} 13... Nxe5 {[%clk 0:04:23.8]} 14.
fxe5 {[%clk 0:04:34.1]} 14... f5 {[%clk 0:04:19.2]} 15. Nf3 {[%clk 0:04:18.2]}
15... Bg5 {[%clk 0:04:00.5]} 16. Bxe4 {[%clk 0:04:10]} 16... fxe4 {[%clk
0:03:57.2]} 17. Nxg5 {[%clk 0:04:09.2]} 17... Qxg5 {[%clk 0:03:56]} 18. Rg3
{[%clk 0:04:07.3]} 18... Qe7 {[%clk 0:03:48.3]} 19. Qh5 {[%clk 0:04:03.1]} 19...
Kh8 {[%clk 0:03:36.7]} 20. Bd2 {[%clk 0:03:51.4]} 20... Rf5 {[%clk 0:03:32.9]}
21. Qg6 {[%clk 0:03:20.3]} 21... Raf8 {[%clk 0:03:13.7]} 22. Rd1 {[%clk
0:03:08.7]} 22... Qf7 {[%clk 0:02:47.1]} 23. Qxf7 {[%clk 0:03:01.5]} 23... R8xf7
{[%clk 0:02:47]} 24. h3 {[%clk 0:02:55.8]} 24... Rf2 {[%clk 0:02:40.7]} 25. Rg6
{[%clk 0:02:52.2]} 25... Bc8 {[%clk 0:02:35.5]} 26. b3 {[%clk 0:02:36.3]} 26...
b5 {[%clk 0:02:28.1]} 27. Rg3 {[%clk 0:02:14.4]} 27... Kh7 {[%clk 0:02:26.3]}
28. Rg4 {[%clk 0:02:10.8]} 28... a5 {[%clk 0:01:48.4]} 29. g3 {[%clk 0:02:06]}
29... h5 {[%clk 0:01:38.6]} 30. Rf4 {[%clk 0:02:04]} 30... R2xf4 {[%clk
0:01:35.4]} 31. exf4 {[%clk 0:01:57.1]} 31... Rb7 {[%clk 0:01:27.4]} 32. g4
{[%clk 0:01:52]} 32... g6 {[%clk 0:01:21.4]} 33. Rf1 {[%clk 0:01:45.8]} 33... b4
{[%clk 0:01:15.6]} 34. cxb4 {[%clk 0:01:40.5]} 34... axb4 {[%clk 0:01:14.5]} 35.
bxc4 {[%clk 0:01:35.5]} 35... dxc4 {[%clk 0:01:12.7]} 36. Rb1 {[%clk 0:01:34.4]}
36... b3 {[%clk 0:01:08.2]} 37. axb3 {[%clk 0:01:32.1]} 37... cxb3 {[%clk
0:01:01.9]} 38. gxh5 {[%clk 0:01:19.9]} 38... gxh5 {[%clk 0:01:00.4]} 39. Kf2
{[%clk 0:01:17.9]} 39... Kg6 {[%clk 0:00:57.4]} 40. Kg3 {[%clk 0:01:12.5]} 40...
Kf5 {[%clk 0:00:54.7]} 41. Kf2 {[%clk 0:01:07.7]} 41... h4 {[%clk 0:00:50.9]}
42. Ke2 {[%clk 0:01:02]} 42... Rb6 {[%clk 0:00:46.4]} 43. Bc3 {[%clk 0:00:58.6]}
43... Ba6+ {[%clk 0:00:44.1]} 44. Kd2 {[%clk 0:00:57.4]} 44... Bd3 {[%clk
0:00:42.1]} 45. Rb2 {[%clk 0:00:55.4]} 45... Bc4 {[%clk 0:00:33.2]} 46. Ke3
{[%clk 0:00:53.2]} 46... Bd3 {[%clk 0:00:31.9]} 47. Bd2 {[%clk 0:00:49.6]} 47...
Bc2 {[%clk 0:00:30]} 48. Bc3 {[%clk 0:00:46.9]} 48... Rc6 {[%clk 0:00:27.6]} 49.
Bd2 {[%clk 0:00:44.3]} 49... Rc4 {[%clk 0:00:26]} 50. Be1 {[%clk 0:00:30.5]}
50... Rc7 {[%clk 0:00:23.1]} 51. Bd2 {[%clk 0:00:29.3]} 51... Rg7 {[%clk
0:00:21.2]} 52. Be1 {[%clk 0:00:27.4]} 52... Rg2 {[%clk 0:00:18.4]} 53. Bxh4
{[%clk 0:00:25.7]} 53... Rh2 {[%clk 0:00:15.7]} 54. Be1 {[%clk 0:00:21]} 54...
Rxh3+ {[%clk 0:00:14.4]} 55. Kd2 {[%clk 0:00:17.7]} 55... Rd3+ {[%clk 0:00:13]}
56. Ke2 {[%clk 0:00:16.6]} 56... Rxd4 {[%clk 0:00:12]} 57. Bd2 {[%clk
0:00:14.3]} 57... Rc4 {[%clk 0:00:09.5]} 58. Be3 {[%clk 0:00:12.2]} 58... Rc8
{[%clk 0:00:08.5]} 59. Kd2 {[%clk 0:00:10.5]} 59... Rg8 {[%clk 0:00:07.8]} 60.
Kc3 {[%clk 0:00:09.3]} 60... Rg2 {[%clk 0:00:07.7]} 61. Bc1 {[%clk 0:00:07.9]}
61... Rg3+ {[%clk 0:00:06.7]} 62. Kb4 {[%clk 0:00:06.7]} 62... Rg2 {[%clk
0:00:06.1]} 63. Kc5 {[%clk 0:00:05.4]} 63... Rf2 {[%clk 0:00:05.1]} 64. Kd6
{[%clk 0:00:04.2]} 64... Rf3 {[%clk 0:00:04.8]} 65. Kd7 {[%clk 0:00:03.6]} 65...
Rh3 {[%clk 0:00:03.7]} 66. Ke7 {[%clk 0:00:02.9]} 66... Rh7+ {[%clk 0:00:03.2]}
67. Kd6 {[%clk 0:00:02.3]} 67... Rh6 {[%clk 0:00:02.6]} 68. Kc5 {[%clk
0:00:01.6]} 68... Rh8 {[%clk 0:00:02.5]} 69. Kb4 {[%clk 0:00:00.9]} 69... Rc8
{[%clk 0:00:02.4]} 70. Ka3 {[%clk 0:00:00.2]} 70... Rb8 {[%clk 0:00:02.2]} 0-1